lending/lending_fUSD_20240219
["ID","MTS","AMOUNT","RATE_DAILY","PERIOD"]
[314483845,1708375928533,-500.0,0.00047671,30]
[314483846,1708375928544,-500.0,0.00047671,30]
[314483847,1708375928554,-500.0,0.00047671,30]
[314483848,1708375928564,-551.15,0.00047671,30]
[314483849,1708375928575,-500.0,0.00047671,30]
[314483850,1708375928585,-500.0,0.00047671,30]
[314483851,1708375928594,-500.0,0.00047671,30]
[314483852,1708375928604,-500.0,0.00047671,30]
[314483853,1708375928614,-500.0,0.00047671,30]
[314483854,1708375928623,-530.23908022,0.00047671,30]
[314483855,1708375928633,-500.0,0.00047671,30]
[314483856,1708375928643,-500.0,0.00047671,30]
[314483857,1708375928652,-687.19,0.00047671,30]
[314483858,1708375928662,-606.33,0.00047671,30]
[314483859,1708375928671,-500.0,0.00047671,30]
[314483860,1708375928681,-500.0,0.00047671,30]
[314483861,1708375928691,-500.0,0.00047671,30]
[314483862,1708375928701,-500.0,0.00047671,30]
[314483863,1708375928710,-796.73,0.00047671,30]
[314483864,1708375928720,-726.97,0.00047671,30]
[314483865,1708375928729,-500.0,0.00047671,30]
[314483866,1708375928738,-500.0,0.00047671,30]
[314483867,1708375928748,-1026.44418331,0.00047671,50]
[314483868,1708375928757,-500.0,0.00047671,30]
[314483869,1708375928766,-500.0,0.00047671,30]
[314483870,1708375928777,-500.0,0.00047671,30]
[314483871,1708375928786,-500.0,0.00047671,30]
[314483872,1708375928797,-500.0,0.00047671,30]
[314483873,1708375928806,-500.0,0.00047671,30]
[314483874,1708375928815,-500.0,0.00047671,30]
[314483875,1708375928825,-500.0,0.00047671,30]
[314483876,1708375928834,-500.0,0.00047671,30]
[314483877,1708375928844,-508.76172028,0.00047671,30]
[314483878,1708375928853,-500.0,0.00047671,30]
[314483879,1708375928945,-646.91,0.00047671,30]
[314483880,1708375928956,-834.56,0.00047671,30]
[314483881,1708375928966,-500.0,0.00047671,30]
[314483882,1708375928975,-198.97350692,0.00047671,30]
[314483883,1708375928984,-664.56,0.00047671,30]
[314483884,1708375928994,-500.0,0.00047671,30]
[314483885,1708375929003,-500.0,0.00047671,30]
[314483886,1708375929014,-500.0,0.00047671,30]
[314483887,1708375929024,-500.0,0.00047671,30]
[314483888,1708375929033,-500.0,0.00047671,30]
[314483889,1708375929042,-500.0,0.00047671,30]
[314483890,1708375929052,-500.0,0.00047671,30]
[314483891,1708375929061,-500.0,0.00047671,30]
[314483892,1708375929071,-500.0,0.00047671,30]
[314483893,1708375929081,-500.0,0.00047671,30]
[314483894,1708375929093,-500.0,0.00047671,30]
[314483895,1708375929103,-500.0,0.00047671,30]
[314483896,1708375929112,-500.0,0.00047671,30]
[314483897,1708375929121,-500.0,0.00047671,30]
[314483898,1708375929131,-500.0,0.00047671,30]
[314483899,1708375929140,-500.0,0.00047671,30]
[314483900,1708375929150,-500.0,0.00047671,30]
[314483901,1708375929159,-500.0,0.00047671,30]
[314483902,1708375929170,-500.0,0.00047671,30]
[314483903,1708375929179,-500.0,0.00047671,30]
[314483904,1708375929189,-500.0,0.00047671,30]
[314483905,1708375929198,-500.0,0.00047671,30]
[314483906,1708375929208,-500.0,0.00047671,30]
[314483907,1708375929217,-558.22,0.00047671,30]
[314483908,1708375929226,-738.02,0.00047671,30]
[314483909,1708375929236,-500.0,0.00047671,30]
[314483910,1708375929245,-500.0,0.00047671,30]
[314483911,1708375929254,-500.0,0.00047671,30]
[314483912,1708375929264,-534.66,0.00047671,30]
[314483913,1708375929273,-500.0,0.00047671,30]
[314483914,1708375929283,-1457.69,0.00047671,30]
[314483915,1708375929292,-420.17570717,0.00047671,30]
[314483916,1708375929302,-500.0,0.00047671,30]
[314483917,1708375929312,-500.0,0.00047671,30]
[314483918,1708375929323,-500.0,0.00047671,30]
[314483919,1708375929332,-500.0,0.00047671,30]
[314483920,1708375929342,-500.0,0.00047671,30]
[314483921,1708375929351,-907.08,0.00047671,30]
[314483922,1708375929360,-500.0,0.00047671,30]
[314483923,1708375929369,-500.0,0.00047671,30]
[314483924,1708375929380,-500.0,0.00047671,30]
[314483925,1708375929389,-1101.19,0.00047671,30]
[314483926,1708375929398,-500.0,0.00047671,30]
[314483927,1708375929407,-372.99207143,0.00047671,30]
[314483928,1708375929417,-500.0,0.00047671,30]
[314483929,1708375929428,-550.58854207,0.00047671,30]
[314483930,1708375929437,-472.06540804,0.00047671,30]
[314483931,1708375929447,-500.0,0.00047671,30]
[314483932,1708375929456,-724.1,0.00047671,30]
[314483933,1708375929465,-500.0,0.00047671,30]
[314483934,1708375929475,-500.0,0.00047671,30]
[314483935,1708375929484,-500.0,0.00047671,30]
[314483936,1708375929494,-500.0,0.00047671,30]
[314483937,1708375929503,-584.96,0.00047671,30]
[314483938,1708375929512,-500.0,0.00047671,30]
[314483939,1708375929521,-500.0,0.00047671,30]
[314483940,1708375929530,-500.0,0.00047671,30]
[314483941,1708375929539,-510.02103287,0.00047671,30]
[314483942,1708375929549,-794.09,0.00047671,30]
[314483943,1708375929558,-500.0,0.00047671,30]
[314483944,1708375929567,-500.0,0.00047671,30]
[314483945,1708375929576,-500.0,0.00047671,30]
[314483946,1708375929586,-596.62,0.00047671,30]
[314483947,1708375929595,-980.76,0.00047671,30]
[314483948,1708375929604,-500.0,0.00047671,30]
[314483949,1708375929614,-725.56,0.00047671,30]
[314483950,1708375929623,-736.53,0.00047671,30]
[314483951,1708375929632,-500.0,0.00047671,30]
[314483952,1708375929641,-500.0,0.00047671,30]
[314483953,1708375929650,-681.49,0.00047671,30]
[314483954,1708375929660,-500.0,0.00047671,30]
[314483955,1708375929669,-529.85,0.00047671,30]
[314483956,1708375929678,-500.0,0.00047671,30]
[314483957,1708375929688,-504.94738742,0.00047671,30]
[314483958,1708375929698,-500.0,0.00047671,30]
[314483959,1708375929707,-611.77,0.00047671,30]
[314483960,1708375929716,-500.0,0.00047671,30]
[314483961,1708375929726,-593.46,0.00047671,30]
[314483962,1708375929735,-500.0,0.00047671,30]
[314483963,1708375929745,-623.19,0.00047671,30]
[314483964,1708375929754,-500.0,0.00047671,30]
[314483965,1708375929764,-767.38,0.00047671,30]
[314483966,1708375929773,-1194.83,0.00047671,30]
[314483967,1708375929782,-500.0,0.00047671,30]
[314483968,1708375929792,-259.43248584,0.00047671,30]
[314483969,1708375929801,-658.06,0.00047671,30]
[314483970,1708375929810,-500.0,0.00047671,30]
[314483971,1708375929820,-858.95,0.00047671,30]
[314483972,1708375929829,-500.0,0.00047671,30]
[314483973,1708375929838,-500.0,0.00047671,30]
[314483974,1708375929847,-500.0,0.00047671,30]
[314483975,1708375929857,-500.0,0.00047671,30]
[314483976,1708375929866,-500.0,0.00047671,30]
[314483977,1708375929876,-1684.76,0.00047671,30]
[314483978,1708375929885,-500.0,0.00047671,30]
[314483979,1708375929894,-1412.31,0.00047671,30]
[314483980,1708375929904,-500.0,0.00047671,30]
[314483981,1708375929913,-2000.0,0.00047671,30]
[314483982,1708375929922,-500.0,0.00047671,30]
[314483983,1708375929931,-1438.64,0.00047671,30]
[314483984,1708375929941,-500.0,0.00047671,30]
[314483985,1708375929950,-500.0,0.00047671,30]
[314483986,1708375929960,-525.84,0.00047671,30]
[314483987,1708375929969,-500.0,0.00047671,30]
[314483988,1708375929978,-500.0,0.00047671,30]
[314483989,1708375929988,-500.0,0.00047671,30]
[314483990,1708375929998,-519.41,0.00047671,30]
[314483991,1708375930007,-500.0,0.00047671,30]
[314483992,1708375930017,-500.0,0.00047671,30]
[314483993,1708375930026,-510.08402342,0.00047671,30]
[314483994,1708375930036,-500.0,0.00047671,30]
[314483995,1708375930045,-1430.29,0.00047671,30]
[314483996,1708375930055,-500.0,0.00047671,30]
[314483997,1708375930065,-500.0,0.00047671,30]
[314483998,1708375930076,-500.0,0.00047671,30]
[314483999,1708375930085,-500.0,0.00047671,30]
[314484000,1708375930100,-500.0,0.00047671,30]
[314484001,1708375930109,-500.0,0.00047671,30]
[314484002,1708375930118,-500.0,0.00047671,30]
[314484003,1708375930127,-500.0,0.00047671,30]
[314484004,1708375930138,-500.0,0.00047671,30]
[314484005,1708375930148,-1105.45,0.00047671,30]
[314484006,1708375930156,-1019.92,0.00047671,30]
[314484007,1708375930166,-500.0,0.00047671,30]
[314484008,1708375930176,-573.1694573,0.00047671,30]
[314484009,1708375930186,-500.0,0.00047671,30]
[314484010,1708375930195,-500.0,0.00047671,30]
[314484011,1708375930205,-500.0,0.00047671,30]
[314484012,1708375930214,-500.0,0.00047671,30]
[314484013,1708375930224,-592.36,0.00047671,30]
[314484014,1708375930233,-500.0,0.00047671,30]
[314484015,1708375930243,-500.0,0.00047671,30]
[314484016,1708375930252,-500.0,0.00047671,30]
[314484017,1708375930262,-500.0,0.00047671,30]
[314484018,1708375930272,-1079.31,0.00047671,30]
[314484019,1708375930281,-500.0,0.00047671,30]
[314484020,1708375930291,-500.0,0.00047671,30]
[314484021,1708375930301,-1238.71,0.00047671,30]
[314484022,1708375930310,-500.0,0.00047671,30]
[314484023,1708375930320,-500.0,0.00047671,30]
[314484024,1708375930329,-500.0,0.00047671,30]
[314484025,1708375930339,-1695.98,0.00047671,2]
[314484026,1708375930348,-512.64,0.00047671,30]
[314484027,1708375930357,-500.0,0.00047671,30]
[314484028,1708375930367,-500.0,0.00047671,30]
[314484029,1708375930376,-500.0,0.00047671,30]
[314484030,1708375930385,-500.0,0.00047671,30]
[314484031,1708375930395,-500.0,0.00047671,2]
[314484032,1708375930404,-626.83,0.00047671,30]
[314484033,1708375930414,-500.0,0.00047671,30]
[314484034,1708375930425,-500.0,0.00047671,30]
[314484035,1708375930435,-782.42,0.00047671,30]
[314484036,1708375930445,-1225.04,0.00047671,30]
[314484037,1708375930454,-500.0,0.00047671,30]
[314484038,1708375930463,-1117.49,0.00047671,30]
[314484039,1708375930472,-500.0,0.00047671,30]
[314484040,1708375930482,-500.0,0.00047671,2]
[314484041,1708375930492,-540.29,0.00047671,30]
[314484042,1708375930501,-500.0,0.00047671,30]
[314484043,1708375930510,-500.0,0.00047671,30]
[314484044,1708375930519,-512.30023447,0.00047671,30]
[314484045,1708375930528,-681.37,0.00047671,30]
[314484046,1708375930538,-500.0,0.00047671,30]
[314484047,1708375930548,-1341.5,0.00047671,30]
[314484048,1708375930557,-500.0,0.00047671,30]
[314484049,1708375930566,-500.0,0.00047671,30]
[314484050,1708375930576,-500.0,0.00047671,30]
[314484051,1708375930585,-834.82,0.00047671,30]
[314484052,1708375930594,-500.0,0.00047671,30]
[314484053,1708375930603,-526.87,0.00047671,30]
[314484054,1708375930613,-567.2,0.00047671,30]
[314484055,1708375930623,-500.0,0.00047671,30]
[314484056,1708375930632,-500.0,0.00047671,30]
[314484057,1708375930641,-500.0,0.00047671,30]
[314484058,1708375930651,-500.0,0.00047671,30]
[314484059,1708375930660,-500.0,0.00047671,30]
[314484060,1708375930669,-500.0,0.00047671,30]
[314484061,1708375930678,-1134.32,0.00047671,30]
[314484062,1708375930687,-500.0,0.00047671,30]
[314484063,1708375930697,-826.41,0.00047671,30]
[314484064,1708375930707,-500.0,0.00047671,30]
[314484065,1708375930716,-1378.15,0.00047671,30]
[314484066,1708375930725,-1170.65,0.00047671,30]
[314484067,1708375930735,-1602.18,0.00047671,30]
[314484068,1708375930744,-500.0,0.00047671,30]
[314484069,1708375930754,-350.14257531,0.00047671,30]
[314484070,1708375930763,-910.93,0.00047671,30]
[314484071,1708375930773,-730.4,0.00047671,30]
[314484072,1708375930781,-1022.68,0.00047671,30]
[314484073,1708375930791,-619.27,0.00047671,30]
[314484074,1708375930801,-500.0,0.00047671,30]
[314484075,1708375930811,-1234.7,0.00047671,30]
[314484076,1708375930822,-1015.68,0.00047671,30]
[314484077,1708375930832,-500.0,0.00047671,30]
[314484078,1708375930842,-500.0,0.00047671,30]
[314484079,1708375930851,-500.0,0.00047671,30]
[314484080,1708375930861,-500.0,0.00047671,30]
[314484081,1708375930870,-500.0,0.00047671,30]
[314484082,1708375930880,-640.09,0.00047671,30]
[314484083,1708375930890,-1097.36,0.00047671,30]
[314484084,1708375930901,-500.0,0.00047671,30]
[314484085,1708375930910,-500.0,0.00047671,30]
[314484086,1708375930919,-500.0,0.00047671,30]
[314484087,1708375930929,-586.6,0.00047671,30]
[314484088,1708375930938,-500.0,0.00047671,30]
[314484089,1708375930947,-500.0,0.00047671,30]
[314484090,1708375930956,-500.0,0.00047671,30]
[314484091,1708375930966,-500.0,0.00047671,30]
[314484092,1708375930975,-500.0,0.00047671,30]
[314484093,1708375930985,-500.0,0.00047671,30]
[314484094,1708375930995,-989.09,0.00047671,30]
[314484095,1708375931004,-500.0,0.00047671,30]
[314484096,1708375931014,-1358.39,0.00047671,30]
[314484097,1708375931023,-500.0,0.00047671,30]
[314484098,1708375931033,-546.18,0.00047671,30]
[314484099,1708375931043,-500.0,0.00047671,30]
[314484100,1708375931053,-1072.42,0.00047671,30]
[314484101,1708375931062,-500.0,0.00047671,30]
[314484102,1708375931071,-1139.87,0.00047671,30]
[314484103,1708375931081,-500.0,0.00047671,30]
[314484104,1708375931093,-500.0,0.00047671,30]
[314484105,1708375931105,-500.0,0.00047671,30]
[314484106,1708375931115,-653.92,0.00047671,30]
[314484107,1708375931125,-500.0,0.00047671,30]
[314484108,1708375931135,-1319.89,0.00047671,30]
[314484109,1708375931145,-500.0,0.00047671,30]
[314484110,1708375931154,-1138.49,0.00047671,30]
[314484111,1708375931164,-500.0,0.00047671,30]
[314484112,1708375931175,-500.0,0.00047671,30]
[314484113,1708375931184,-500.0,0.00047671,30]
[314484114,1708375931194,-500.0,0.00047671,30]
[314484115,1708375931203,-500.0,0.00047671,30]
[314484116,1708375931213,-500.0,0.00047671,30]
[314484117,1708375931223,-701.86,0.00047671,30]
[314484118,1708375931233,-500.0,0.00047671,30]
[314484119,1708375931242,-821.67,0.00047671,30]
[314484120,1708375931253,-546.51,0.00047671,30]
[314484121,1708375931263,-791.29,0.00047671,30]
[314484122,1708375931274,-555.68,0.00047671,30]
[314484123,1708375931283,-500.0,0.00047671,30]
[314484124,1708375931293,-500.0,0.00047671,30]
[314484125,1708375931305,-500.0,0.00047671,30]
[314484126,1708375931315,-500.0,0.00047671,30]
[314484127,1708375931324,-1096.08,0.00047671,30]
[314484128,1708375931335,-517.1,0.00047671,30]
[314484129,1708375931344,-817.72,0.00047671,30]
[314484130,1708375931354,-500.0,0.00047671,30]
[314484131,1708375931364,-1231.27,0.00047671,30]
[314484132,1708375931374,-882.89,0.00047671,30]
[314484133,1708375931385,-500.0,0.00047671,30]
[314484134,1708375931395,-500.0,0.00047671,30]
[314484135,1708375931406,-633.3,0.00047671,30]
[314484136,1708375931417,-500.0,0.00047671,30]
[314484137,1708375931427,-551.60550484,0.00047671,30]
[314484138,1708375931438,-500.0,0.00047671,30]
[314484139,1708375931448,-1075.43,0.00047671,30]
[314484140,1708375931458,-1081.85,0.00047671,30]
[314484141,1708375931469,-500.0,0.00047671,30]
[314484142,1708375931480,-268.78837537,0.00047671,30]
[314484143,1708375931490,-500.0,0.00047671,30]
[314484144,1708375931501,-569.42,0.00047671,30]
[314484145,1708375931511,-1092.13,0.00047671,30]
[314484146,1708375931521,-500.0,0.00047671,30]
[314484147,1708375931530,-500.0,0.00047671,30]
[314484148,1708375931541,-537.66,0.00047671,30]
[314484149,1708375931552,-500.0,0.00047671,30]
[314484150,1708375931562,-500.0,0.00047671,30]
[314484151,1708375931571,-500.0,0.00047671,30]
[314484152,1708375931581,-500.0,0.00047671,30]
[314484153,1708375931592,-686.43,0.00047671,30]
[314484154,1708375931602,-988.65,0.00047671,30]
[314484155,1708375931612,-500.0,0.00047671,30]
[314484156,1708375931621,-500.0,0.00047671,30]
[314484157,1708375931631,-1169.05,0.00047671,30]
[314484158,1708375931641,-500.0,0.00047671,30]
[314484159,1708375931651,-696.77,0.00047671,30]
[314484160,1708375931661,-1548.35,0.00047671,30]
[314484161,1708375931671,-500.0,0.00047671,30]
[314484162,1708375931681,-823.36,0.00047671,30]
[314484163,1708375931691,-500.0,0.00047671,30]
[314484164,1708375931700,-500.0,0.00047671,30]
[314484165,1708375931710,-500.0,0.00047671,30]
[314484166,1708375931720,-879.35,0.00047671,30]
[314484167,1708375931729,-500.0,0.00047671,30]
[314484168,1708375931740,-971.92,0.00047671,30]
[314484169,1708375931750,-1247.38,0.00047671,30]
[314484170,1708375931759,-500.0,0.00047671,30]
[314484171,1708375931769,-542.39088258,0.00047671,30]
[314484172,1708375931780,-1398.42,0.00047671,30]
[314484173,1708375931791,-500.0,0.00047671,30]
[314484174,1708375931802,-701.34,0.00047671,30]
[314484175,1708375931812,-500.0,0.00047671,30]
[314484176,1708375931822,-500.0,0.00047671,30]
[314484177,1708375931832,-500.0,0.00047671,30]
[314484178,1708375931842,-432.3827898,0.00047671,30]
[314484179,1708375931851,-926.08,0.00047671,30]
[314484180,1708375931861,-500.0,0.00047671,30]
[314484181,1708375931891,-500.0,0.00047671,30]
[314484182,1708375931901,-500.0,0.00047671,30]
[314484183,1708375931911,-500.0,0.00047671,30]
[314484184,1708375931922,-1439.25,0.00047671,30]
[314484185,1708375931932,-500.0,0.00047671,30]
[314484186,1708375931942,-500.0,0.00047671,30]
[314484187,1708375931952,-730.11,0.00047671,30]
[314484188,1708375931963,-642.65,0.00047671,30]
[314484189,1708375931973,-1058.32,0.00047671,30]
[314484190,1708375931983,-500.0,0.00047671,30]
[314484191,1708375931993,-909.21,0.00047671,30]
[314484192,1708375932004,-960.6,0.00047671,30]
[314484193,1708375932014,-500.0,0.00047671,30]
[314484194,1708375932024,-529.3,0.00047671,30]
[314484195,1708375932034,-500.0,0.00047671,30]
[314484196,1708375932044,-500.0,0.00047671,30]
[314484197,1708375932054,-500.0,0.00047671,30]
[314484198,1708375932064,-747.42,0.00047671,30]
[314484199,1708375932075,-830.98,0.00047671,30]
[314484200,1708375932087,-1206.67,0.00047671,30]
[314484201,1708375932100,-500.0,0.00047671,30]
[314484202,1708375932111,-500.0,0.00047671,2]
[314484203,1708375932122,-500.0,0.00047671,30]
[314484204,1708375932133,-500.0,0.00047671,30]
[314484205,1708375932144,-1598.54,0.00047671,30]
[314484206,1708375932154,-642.68,0.00047671,30]
[314484207,1708375932165,-500.0,0.00047671,30]
[314484208,1708375932176,-500.0,0.00047671,30]
[314484209,1708375932187,-500.0,0.00047671,30]
[314484210,1708375932197,-542.13,0.00047671,30]
[314484211,1708375932207,-751.64,0.00047671,30]
[314484212,1708375932216,-905.09,0.00047671,30]
[314484213,1708375932226,-921.92,0.00047671,30]
[314484214,1708375932235,-500.0,0.00047671,30]
[314484215,1708375932245,-752.52,0.00047671,30]
[314484216,1708375932255,-500.0,0.00047671,30]
[314484217,1708375932265,-500.0,0.00047671,30]
[314484218,1708375932275,-500.0,0.00047671,30]
[314484219,1708375932297,-811.75,0.00047671,30]
[314484220,1708375932308,-565.99,0.00047671,30]
[314484221,1708375932319,-1432.15,0.00047671,30]
[314484222,1708375932329,-694.07,0.00047671,30]
[314484223,1708375932340,-500.0,0.00047671,30]
[314484224,1708375932350,-1105.31,0.00047671,30]
[314484225,1708375932360,-500.0,0.00047671,30]
[314484226,1708375932371,-575.99824909,0.00047671,30]
[314484227,1708375932382,-724.85,0.00047671,30]
[314484228,1708375932393,-520.47360113,0.00047671,30]
[314484229,1708375932404,-500.0,0.00047671,30]
[314484230,1708375932415,-500.0,0.00047671,30]
[314484231,1708375932426,-1212.7,0.00047671,30]
[314484232,1708375932437,-892.85,0.00047671,30]
[314484233,1708375932447,-500.0,0.00047671,30]
[314484234,1708375932458,-507.5912997,0.00047671,30]
[314484235,1708375932468,-500.0,0.00047671,30]
[314484236,1708375932478,-869.25,0.00047671,30]
[314484237,1708375932489,-500.0,0.00047671,30]
[314484238,1708375932499,-500.0,0.00047671,30]
[314484239,1708375932509,-490.49661032,0.00047671,30]
[314484240,1708375932520,-500.0,0.00047671,30]
[314484241,1708375932530,-500.0,0.00047671,30]
[314484242,1708375932541,-500.0,0.00047671,30]
[314484243,1708375932551,-500.0,0.00047671,30]
[314484244,1708375932562,-500.0,0.00047671,30]
[314484245,1708375932572,-810.5,0.00047671,30]
[314484246,1708375932582,-567.89,0.00047671,30]
[314484247,1708375932592,-500.0,0.00047671,30]
[314484248,1708375932602,-1168.13,0.00047671,30]
[314484249,1708375932613,-1054.03,0.00047671,30]
[314484250,1708375932624,-500.0,0.00047671,30]
[314484251,1708375932634,-500.0,0.00047671,2]
[314484252,1708375932644,-500.0,0.00047671,30]
[314484253,1708375932655,-500.0,0.00047671,30]
[314484254,1708375932666,-500.0,0.00047671,30]
[314484255,1708375932677,-500.0,0.00047671,30]
[314484256,1708375932688,-500.0,0.00047671,30]
[314484257,1708375932698,-822.31,0.00047671,30]
[314484258,1708375932709,-500.0,0.00047671,30]
[314484259,1708375932719,-1261.76,0.00047671,30]
[314484260,1708375932730,-500.0,0.00047671,30]
[314484261,1708375932740,-500.0,0.00047671,30]
[314484262,1708375932750,-743.59,0.00047671,30]
[314484263,1708375932760,-929.31,0.00047671,30]
[314484264,1708375932770,-500.0,0.00047671,30]
[314484265,1708375932781,-500.0,0.00047671,30]
[314484266,1708375932792,-500.0,0.00047671,30]
[314484267,1708375932804,-500.0,0.00047671,30]
[314484268,1708375932815,-516.11,0.00047671,30]
[314484269,1708375932826,-1169.76,0.00047671,30]
[314484270,1708375932836,-655.79,0.00047671,30]
[314484271,1708375932847,-500.0,0.00047671,30]
[314484272,1708375932858,-1155.7,0.00047671,30]
[314484273,1708375932868,-500.0,0.00047671,30]
[314484274,1708375932878,-500.0,0.00047671,30]
[314484275,1708375932889,-1079.22,0.00047671,30]
[314484276,1708375932899,-425.21698649,0.00047671,30]
[314484277,1708375932910,-531.84,0.00047671,30]
[314484278,1708375932921,-1189.04,0.00047671,30]
[314484279,1708375932932,-817.13,0.00047671,30]
[314484280,1708375932942,-500.0,0.00047671,30]
[314484281,1708375932952,-207.9,0.00047671,30]
[314484282,1708375932963,-500.0,0.00047671,30]
[314484283,1708375932974,-500.0,0.00047671,30]
[314484284,1708375932985,-500.0,0.00047671,30]
[314484285,1708375932995,-500.0,0.00047671,30]
[314484286,1708375933006,-954.22,0.00047671,30]
[314484287,1708375933016,-500.0,0.00047671,30]
[314484288,1708375933027,-377.90487062,0.00047671,30]
[314484289,1708375933037,-1014.4,0.00047671,30]
[314484290,1708375933048,-500.0,0.00047671,30]
[314484291,1708375933059,-500.0,0.00047671,30]
[314484292,1708375933070,-1091.86,0.00047671,30]
[314484293,1708375933082,-500.0,0.00047671,30]
[314484294,1708375933095,-623.17,0.00047671,30]
[314484295,1708375933107,-500.0,0.00047671,30]
[314484296,1708375933119,-976.49,0.00047671,30]
[314484297,1708375933130,-500.0,0.00047671,30]
[314484298,1708375933142,-980.87,0.00047671,30]
[314484299,1708375933152,-500.0,0.00047671,30]
[314484300,1708375933163,-500.0,0.00047671,30]
[314484301,1708375933175,-500.0,0.00047671,30]
[314484302,1708375933185,-500.0,0.00047671,30]
[314484303,1708375933196,-500.0,0.00047671,30]
[314484304,1708375933207,-500.0,0.00047671,30]
[314484305,1708375933218,-500.0,0.00047671,30]
[314484306,1708375933228,-500.0,0.00047671,30]
[314484307,1708375933239,-500.0,0.00047671,30]
[314484308,1708375933249,-500.0,0.00047671,30]
[314484309,1708375933260,-500.0,0.00047671,30]
[314484310,1708375933271,-500.0,0.00047671,30]
[314484311,1708375933282,-500.0,0.00047671,30]
[314484312,1708375933293,-1000.0,0.00047671,7]
[314484313,1708375933305,-500.0,0.00047671,30]
[314484314,1708375933316,-893.6,0.00047671,30]
[314484315,1708375933326,-500.0,0.00047671,30]
[314484316,1708375933338,-500.0,0.00047671,30]
[314484317,1708375933348,-500.0,0.00047671,30]
[314484318,1708375933358,-500.0,0.00047671,30]
[314484319,1708375933369,-500.0,0.00047671,30]
[314484320,1708375933380,-500.0,0.00047671,30]
[314484321,1708375933391,-641.69,0.00047671,30]
[314484322,1708375933401,-500.0,0.00047671,30]
[314484323,1708375933412,-500.0,0.00047671,7]
[314484324,1708375933422,-500.0,0.00047671,30]
[314484325,1708375933433,-500.0,0.00047671,30]
[314484326,1708375933444,-500.0,0.00047671,30]
[314484327,1708375933455,-500.0,0.00047671,30]
[314484328,1708375933466,-500.0,0.00047671,30]
[314484329,1708375933477,-1098.68,0.00047671,30]
[314484330,1708375933488,-500.0,0.00047671,30]
[314484331,1708375933498,-500.0,0.00047671,30]
[314484332,1708375933508,-500.0,0.00047671,30]
[314484333,1708375933519,-783.48,0.00047671,30]
[314484334,1708375933530,-500.0,0.00047671,30]
[314484335,1708375933540,-500.0,0.00047671,30]
[314484336,1708375933551,-500.0,0.00047671,30]
[314484337,1708375933562,-500.0,0.00047671,30]
[314484338,1708375933573,-500.0,0.00047671,30]
[314484339,1708375933583,-1291.14,0.00047671,30]
[314484340,1708375933594,-500.0,0.00047671,30]
[314484341,1708375933604,-500.0,0.00047671,30]
[314484342,1708375933615,-1226.84,0.00047671,30]
[314484343,1708375933625,-500.0,0.00047671,30]
[314484344,1708375933635,-500.0,0.00047671,30]